[Event "World Senior chT-65 2019"]
[Site "Rhodes"]
[Date "2019.04.20"]
[Round "5.13"]
[White "Povah, Nigel E"]
[Black "Herzog, Adolf"]
[Result "1/2-1/2"]
[ECO "D00"]
[WhiteElo "2319"]
[BlackElo "2337"]
[Annotator "NA"]
[PlyCount "167"]
[EventDate "2019.04.16"]
[EventType "team-tourn"]
[EventCountry "GRE"]
[SourceTitle "playchess.com"]
[Source "ChessBase"]
[SourceQuality "1"]
[WhiteTeam "England"]
[BlackTeam "Austria"]
[WhiteTeamCountry "ENG"]
[BlackTeamCountry "AUT"]
[TimeControl "40/5400+30:1800+30"]

1. d4 {[%emt 0:00:00]} Nf6 {[%emt 0:00:00]} 2. Bf4 {[%emt 0:00:45]} d5 {[%emt 0:00:00]} 3. e3 {[%emt 0:00:15]} c5 {[%emt 0:00:19]} 4. c3 {[%emt 0:00:52]} Qb6 {[%emt 0:03:24]} 5. Qb3 {[%emt 0:01:18]} c4 {[%emt 0:03:38]} 6. Qc2 {[%emt 0:05:15]} g6 {[%emt 0:00:16]} 7. Nd2 {[%emt 0:03:38]} Bf5 {[%emt 0:00:40]} 8. Qc1 {[%emt 0:00:06]} Bg7 {[%emt 0:03:03]} 9. h3 {[%emt 0:06:42]} Nc6 {[%emt 0:03:40]} 10. Ngf3 {[%emt 0:02:04]} Qd8 {[%emt 0:06:52]} 11. Be2 {[%emt 0:08:02]} Rc8 {[%emt 0:02:32]} 12. O-O {[%emt 0:03:57]} O-O {[%emt 0:02:39]} 13. Ne5 {[%emt 0:21:36]} Nd7 {[%emt 0:11:53]} 14. e4 {[%emt 0:14:40]} Bxe4 {[%emt 0:06:39]} 15. Nxe4 {[%emt 0:09:30]} dxe4 {[%emt 0:05:43]} 16. Nxc4 {[%emt 0:03:37]} b5 {[%emt 0:04:25]} 17. d5 {[%emt 0:01:37]} bxc4 {[%emt 0:02:47]} 18. dxc6 {[%emt 0:01:54]} Rxc6 {[%emt 0:00:07]} 19. Rd1 {[%emt 0:00:52]} e5 {[%emt 0:02:23]} 20. Bg5 {[%emt 0:04:25]} Qc7 {[%emt 0:01:34]} 21. Qd2 {[%emt 0:01:55]} Nb6 {[%emt 0:01:25]} 22. Bd8 {[%emt 0:00:39]} Qb7 {[%emt 0:06:16]} 23. Rab1 {[%emt 0:00:37]} Bf6 {[%emt 0:02:42]} 24. Bxb6 {[%emt 0:02:09]} Qxb6 {[%emt 0:00:34]} 25. Qd5 {[%emt 0:00:18]} e3 {[%emt 0:00:59]} 26. Bxc4 {[%emt 0:01:21]} exf2+ {[%emt 0:00:16]} 27. Kf1 {[%emt 0:00:11]} Rc7 {[%emt 0:07:06]} 28. b3 {[%emt 0:00:34]} Kg7 {[%emt 0:00:41]} 29. Qe4 {[%emt 0:00:37]} Qa5 {[%emt 0:02:38]} 30. Rb2 {[%emt 0:01:26]} Qxc3 {[%emt 0:00:50]} 31. Rxf2 {[%emt 0:00:07]} Rd8 {[%emt 0:04:47]} 32. Rxd8 {[%emt 0:01:06]} Qa1+ {[%emt 0:01:18]} 33. Ke2 {[%emt 0:00:18]} Bxd8 {[%emt 0:00:07]} 34. Qd5 {[%emt 0:01:04]} Qxa2+ {[%emt 0:04:57]} 35. Kf3 {[%emt 0:00:33]} e4+ {[%emt 0:00:35]} 36. Ke3 {[%emt 0:00:25]} Qa1 {[%emt 0:01:47]} 37. Qxd8 {[%emt 0:01:55]} Qe1+ {[%emt 0:00:28]} 38. Re2 {[%emt 0:00:21]} Qc3+ {[%emt 0:02:15]} 39. Kf2 {[%emt 0:00:00]} Qe5 {[%emt 0:00:00]} 40. Rxe4 {[%emt 0:00:00]} Qf5+ {[%emt 0:00:00]} 41. Ke3 {[%emt 0:02:28]} Rd7 {[%emt 0:00:41]} 42. Qb8 {[%emt 0:03:55]} Qg5+ {[%emt 0:00:46]} 43. Kf3 {[%emt 0:00:55]} Qd2 {[%emt 0:01:41]} 44. Kg3 {[%emt 0:03:14]} h5 {[%emt 0:00:56]} 45. Qf4 {[%emt 0:01:51]} Qd1 {[%emt 0:00:45]} 46. Kh2 {[%emt 0:03:04]} Qc2 {[%emt 0:04:06]} 47. Qe5+ {[%emt 0:01:18]} Kh7 {[%emt 0:01:45]} 48. Qe8 {[%emt 0:03:35]} Rb7 {[%emt 0:02:49]} 49. Rf4 {[%emt 0:03:13]} f5 {[%emt 0:00:15]} 50. Rd4 {[%emt 0:02:37]} Qf2 {[%emt 0:00:24]} 51. Qe5 {[%emt 0:02:54]} Rg7 {[%emt 0:00:32]} 52. Rf4 {[%emt 0:01:19]} Qd2 {[%emt 0:00:18]} 53. h4 {[%emt 0:00:09]} Rd7 {[%emt 0:01:55]} 54. Be6 {[%emt 0:01:40]} Rg7 {[%emt 0:03:52]} 55. Rc4 {[%emt 0:00:26]} Qf2 {[%emt 0:00:31]} 56. Qf4 {[%emt 0:02:15]} Qb6 {[%emt 0:00:14]} 57. Qe5 {[%emt 0:01:02]} Qf2 {[%emt 0:00:35]} 58. Kh3 {[%emt 0:01:13]} Qf1 {[%emt 0:01:48]} 59. Rf4 {[%emt 0:02:21]} Qh1+ {[%emt 0:01:19]} 60. Kg3 {[%emt 0:00:01]} Qg1 {[%emt 0:01:51]} 61. Rc4 {[%emt 0:01:08]} Qd1 {[%emt 0:01:30]} 62. Kh2 {[%emt 0:00:24]} Qd8 {[%emt 0:01:32]} 63. g3 {[%emt 0:01:23]} Qd2+ {[%emt 0:00:38]} 64. Kh3 {[%emt 0:00:06]} Qd1 {[%emt 0:00:55]} 65. Bd5 {[%emt 0:00:07]} Kh6 {[%emt 0:02:35]} 66. Rc8 {[%emt 0:01:08]} Qg4+ {[%emt 0:04:34]} 67. Kh2 {[%emt 0:00:05]} Kh7 {[%emt 0:00:45]} 68. Qb8 {[%emt 0:00:28]} Qe2+ {[%emt 0:00:19]} 69. Bg2 {[%emt 0:00:12]} Rf7 {[%emt 0:00:40]} 70. Rh8+ {[%emt 0:01:10]} Kg7 {[%emt 0:00:07]} 71. Re8 {[%emt 0:00:32]} Qb2 {[%emt 0:02:27]} 72. Qe5+ {[%emt 0:01:03]} Qxe5 {[%emt 0:00:08]} 73. Rxe5 {[%emt 0:00:01]} f4 {[%emt 0:02:49]} 74. gxf4 {[%emt 0:00:05]} Rxf4 {[%emt 0:00:04]} 75. Re7+ {[%emt 0:00:27]} Kf6 {[%emt 0:00:08]} 76. Rxa7 {[%emt 0:00:06]} Rxh4+ {[%emt 0:00:04]} 77. Kg3 {[%emt 0:00:16]} Rd4 {[%emt 0:00:10]} 78. Rb7 {[%emt 0:00:51]} g5 {[%emt 0:00:33]} 79. b4 {[%emt 0:00:38]} h4+ {[%emt 0:00:33]} 80. Kf2 {[%emt 0:00:52]} Rd2+ {[%emt 0:00:14]} 81. Kf3 {[%emt 0:01:03]} g4+ {[%emt 0:00:11]} 82. Kxg4 {[%emt 0:00:05]} Rxg2+ {[%emt 0:00:05]} 83. Kxh4 {[%emt 0:00:04]} Ke6 {[%emt 0:00:55]} 84. Kh3 {[%emt 0:00:53]} 1/2-1/2

[Event "World Senior chT-65 2019"]
[Site "Rhodes"]
[Date "2019.04.20"]
[Round "5.14"]
[White "Petschar, Kurt"]
[Black "Stebbings, Anthony J"]
[Result "1-0"]
[ECO "A31"]
[WhiteElo "2226"]
[BlackElo "2281"]
[Annotator "NA"]
[PlyCount "99"]
[EventDate "2019.04.16"]
[EventType "team-tourn"]
[EventCountry "GRE"]
[SourceTitle "playchess.com"]
[Source "ChessBase"]
[SourceQuality "1"]
[WhiteTeam "Austria"]
[BlackTeam "England"]
[WhiteTeamCountry "AUT"]
[BlackTeamCountry "ENG"]
[TimeControl "40/5400+30:1800+30"]

1. c4 {[%emt 0:01:08]} c5 {[%emt 0:00:00]} 2. Nf3 {[%emt 0:05:44]} Nf6 {[%emt 0:00:17]} 3. Nc3 {[%emt 0:00:20]} Nc6 {[%emt 0:04:03]} 4. d4 {[%emt 0:04:56]} cxd4 {[%emt 0:00:00]} 5. Nxd4 {[%emt 0:00:02]} Qb6 {[%emt 0:00:00]} 6. Nb3 {[%emt 0:01:26]} e6 {[%emt 0:00:29]} 7. Bg5 {[%emt 0:08:07]} d6 {[%emt 0:20:18]} 8. e4 {[%emt 0:05:37]} Be7 {[%emt 0:00:00]} 9. Be2 {[%emt 0:00:11]} O-O {[%emt 0:00:11]} 10. O-O {[%emt 0:00:08]} a6 {[%emt 0:07:32]} 11. Rc1 {[%emt 0:01:03]} Ne5 {[%emt 0:01:35]} 12. Be3 {[%emt 0:00:29]} Qc7 {[%emt 0:00:23]} 13. f4 {[%emt 0:09:01]} Ng6 {[%emt 0:02:37]} 14. Qe1 {[%emt 0:02:14]} b6 {[%emt 0:07:07]} 15. Qf2 {[%emt 0:00:00]} Nd7 {[%emt 0:02:46]} 16. Nd4 {[%emt 0:08:48]} Bh4 {[%emt 0:07:27]} 17. g3 {[%emt 0:00:00]} Bf6 18. h4 {[%emt 0:00:00]} Bb7 19. h5 {[%emt 0:00:00]} Ne7 20. g4 {[%emt 0:00:56]} Nc5 {[%emt 0:04:12]} 21. Qg2 {[%emt 0:12:59]} Bxd4 {[%emt 0:11:38]} 22. Bxd4 {[%emt 0:00:06]} e5 {[%emt 0:01:54]} 23. Be3 {[%emt 0:07:30]} f6 {[%emt 0:06:56]} 24. b4 {[%emt 0:06:21]} Nd7 {[%emt 0:05:09]} 25. Nd5 {[%emt 0:01:05]} Nxd5 {[%emt 0:00:00]} 26. cxd5 {[%emt 0:00:26]} Qd8 {[%emt 0:02:05]} 27. h6 {[%emt 0:00:00]} g6 {[%emt 0:00:00]} 28. f5 {[%emt 0:00:00]} g5 29. a3 {[%emt 0:02:49]} Rc8 {[%emt 0:04:04]} 30. Bd3 {[%emt 0:07:33]} b5 {[%emt 0:00:14]} 31. Qd2 {[%emt 0:01:25]} Qe7 {[%emt 0:01:52]} 32. Kf2 {[%emt 0:00:25]} Rxc1 {[%emt 0:06:56]} 33. Rxc1 {[%emt 0:00:23]} Rc8 {[%emt 0:00:09]} 34. Rxc8+ {[%emt 0:00:00]} Bxc8 {[%emt 0:00:31]} 35. Qc2 {[%emt 0:00:17]} Qd8 {[%emt 0:00:11]} 36. a4 {[%emt 0:00:33]} bxa4 {[%emt 0:00:23]} 37. Qxa4 {[%emt 0:04:33]} Qc7 {[%emt 0:05:41]} 38. Qc6 {[%emt 0:00:00]} Qxc6 {[%emt 0:01:02]} 39. dxc6 {[%emt 0:00:00]} Nb8 {[%emt 0:00:01]} 40. b5 {[%emt 0:00:00]} axb5 {[%emt 0:00:00]} 41. Bxb5 {[%emt 0:00:00]} Kf8 42. Bc1 {[%emt 0:10:49]} Na6 {[%emt 0:02:57]} 43. Ba3 {[%emt 0:00:00]} Ke7 44. Bc4 {[%emt 0:01:12]} Nb8 {[%emt 0:00:26]} 45. Bg8 {[%emt 0:00:21]} Nxc6 {[%emt 0:13:31]} 46. Bxh7 {[%emt 0:00:00]} Nd8 47. Bxd6+ {[%emt 0:01:44]} Kf7 {[%emt 0:01:02]} 48. Bg6+ {[%emt 0:00:00]} Kg8 {[%emt 0:02:17]} 49. h7+ {[%emt 0:00:25]} Kg7 {[%emt 0:00:00]} 50. Be7 {[%emt 0:00:32]} 1-0

[Event "World Senior chT-65 2019"]
[Site "Rhodes"]
[Date "2019.04.20"]
[Round "5.15"]
[White "Snape, Ian L"]
[Black "Singer, Hans"]
[Result "1/2-1/2"]
[ECO "A18"]
[WhiteElo "2154"]
[BlackElo "2195"]
[Annotator "NA"]
[PlyCount "57"]
[EventDate "2019.04.16"]
[EventType "team-tourn"]
[EventCountry "GRE"]
[SourceTitle "playchess.com"]
[Source "ChessBase"]
[SourceQuality "1"]
[WhiteTeam "England"]
[BlackTeam "Austria"]
[WhiteTeamCountry "ENG"]
[BlackTeamCountry "AUT"]
[TimeControl "40/5400+30:1800+30"]

1. c4 {[%emt 0:00:07]} Nf6 {[%emt 0:00:00]} 2. Nc3 {[%emt 0:00:00]} e6 3. e4 {[%emt 0:01:13]} d5 {[%emt 0:00:56]} 4. e5 {[%emt 0:00:11]} d4 {[%emt 0:00:11]} 5. exf6 {[%emt 0:00:12]} dxc3 {[%emt 0:00:10]} 6. bxc3 {[%emt 0:00:20]} Qxf6 {[%emt 0:00:14]} 7. d4 {[%emt 0:00:00]} c5 8. Nf3 {[%emt 0:04:14]} h6 {[%emt 0:00:55]} 9. Bd3 {[%emt 0:03:12]} Nc6 {[%emt 0:06:56]} 10. Ba3 {[%emt 0:01:30]} Be7 {[%emt 0:02:28]} 11. O-O {[%emt 0:00:11]} cxd4 {[%emt 0:00:24]} 12. Bxe7 {[%emt 0:02:22]} Kxe7 {[%emt 0:01:38]} 13. cxd4 {[%emt 0:00:00]} Nxd4 14. Nxd4 {[%emt 0:02:33]} Qxd4 {[%emt 0:00:30]} 15. Qb3 {[%emt 0:00:04]} Qc5 16. Rab1 {[%emt 0:07:59]} Rd8 17. Be4 {[%emt 0:13:13]} Bd7 {[%emt 0:07:54]} 18. Bxb7 {[%emt 0:00:00]} Rab8 {[%emt 0:05:18]} 19. Qg3 {[%emt 0:00:00]} Kf8 20. h3 {[%emt 0:06:47]} Ba4 {[%emt 0:07:43]} 21. Rfc1 {[%emt 0:05:36]} g6 {[%emt 0:03:15]} 22. h4 {[%emt 0:00:00]} Kg8 {[%emt 0:02:51]} 23. Qf4 {[%emt 0:00:22]} Kg7 {[%emt 0:04:18]} 24. h5 {[%emt 0:02:48]} g5 {[%emt 0:01:30]} 25. Qg3 {[%emt 0:05:11]} Kg8 {[%emt 0:07:30]} 26. Kh2 {[%emt 0:10:20]} Kg7 {[%emt 0:26:59]} 27. Kg1 {[%emt 0:01:36]} Kg8 28. Kh1 {[%emt 0:00:39]} Kg7 29. Kg1 {[%emt 0:01:07]} 1/2-1/2

[Event "World Senior chT-65 2019"]
[Site "Rhodes"]
[Date "2019.04.20"]
[Round "5.16"]
[White "Ager, Josef"]
[Black "Quinn, John M"]
[Result "1-0"]
[ECO "E92"]
[WhiteElo "2122"]
[BlackElo "2140"]
[Annotator "NA"]
[PlyCount "115"]
[EventDate "2019.04.16"]
[EventType "team-tourn"]
[EventCountry "GRE"]
[SourceTitle "playchess.com"]
[Source "ChessBase"]
[SourceQuality "1"]
[WhiteTeam "Austria"]
[BlackTeam "England"]
[WhiteTeamCountry "AUT"]
[BlackTeamCountry "ENG"]
[TimeControl "40/5400+30:1800+30"]

1. Nf3 {[%emt 0:00:00]} Nf6 {[%emt 0:00:00]} 2. c4 {[%emt 0:00:00]} g6 {[%emt 0:00:00]} 3. d4 {[%emt 0:00:00]} Bg7 {[%emt 0:00:00]} 4. Nc3 {[%emt 0:00:00]} O-O {[%emt 0:00:07]} 5. e4 {[%emt 0:00:01]} d6 {[%emt 0:00:05]} 6. Be2 {[%emt 0:00:08]} e5 {[%emt 0:00:19]} 7. Be3 {[%emt 0:01:01]} Ng4 {[%emt 0:01:38]} 8. Bg5 {[%emt 0:00:13]} f6 {[%emt 0:00:07]} 9. Bh4 {[%emt 0:00:03]} g5 {[%emt 0:03:59]} 10. Bg3 {[%emt 0:00:08]} Nh6 {[%emt 0:00:30]} 11. Qd2 {[%emt 0:01:11]} c6 {[%emt 0:04:33]} 12. Rd1 {[%emt 0:00:52]} Nf7 {[%emt 0:01:07]} 13. d5 {[%emt 0:04:52]} Na6 {[%emt 0:15:36]} 14. O-O {[%emt 0:03:49]} h5 {[%emt 0:09:46]} 15. h3 {[%emt 0:02:55]} Bh6 {[%emt 0:01:43]} 16. Qc2 {[%emt 0:01:09]} Nb4 {[%emt 0:10:54]} 17. Qb3 {[%emt 0:00:32]} c5 {[%emt 0:02:51]} 18. Ne1 {[%emt 0:01:19]} h4 {[%emt 0:07:35]} 19. Bh2 {[%emt 0:00:07]} Qe7 {[%emt 0:00:32]} 20. a3 {[%emt 0:00:41]} Na6 {[%emt 0:00:08]} 21. Nc2 {[%emt 0:00:24]} Nc7 {[%emt 0:02:09]} 22. Ne3 {[%emt 0:00:47]} b6 {[%emt 0:07:32]} 23. Qc2 {[%emt 0:02:39]} Nd8 {[%emt 0:03:31]} 24. Nf5 {[%emt 0:03:50]} Bxf5 {[%emt 0:00:37]} 25. exf5 {[%emt 0:00:06]} Qf7 {[%emt 0:01:02]} 26. Ne4 {[%emt 0:01:03]} Nb7 {[%emt 0:00:08]} 27. Bg4 {[%emt 0:01:38]} Rfd8 {[%emt 0:01:50]} 28. Qe2 {[%emt 0:02:20]} Bf8 {[%emt 0:00:47]} 29. Bh5 {[%emt 0:00:15]} Qg7 {[%emt 0:01:34]} 30. Kh1 {[%emt 0:00:28]} Na5 {[%emt 0:01:31]} 31. Qd3 {[%emt 0:01:07]} Be7 {[%emt 0:01:43]} 32. Rg1 {[%emt 0:01:38]} Qh6 {[%emt 0:00:12]} 33. Bg6 {[%emt 0:00:38]} Kg7 {[%emt 0:00:55]} 34. g3 {[%emt 0:02:03]} hxg3 {[%emt 0:00:28]} 35. Nxg3 {[%emt 0:00:11]} Rh8 {[%emt 0:00:47]} 36. Nh5+ {[%emt 0:00:22]} Kf8 {[%emt 0:00:19]} 37. b4 {[%emt 0:00:46]} Nb7 {[%emt 0:00:12]} 38. h4 {[%emt 0:06:09]} Ne8 {[%emt 0:00:35]} 39. Rg3 {[%emt 0:08:22]} Ng7 {[%emt 0:01:50]} 40. hxg5 {[%emt 0:00:00]} fxg5 {[%emt 0:00:00]} 41. Rh3 {[%emt 0:00:26]} g4 {[%emt 0:01:35]} 42. Nxg7 {[%emt 0:00:59]} Qxh3 {[%emt 0:01:38]} 43. Ne6+ {[%emt 0:00:07]} Kg8 {[%emt 0:00:07]} 44. Qxh3 {[%emt 0:00:06]} Rxh3 {[%emt 0:00:18]} 45. Rg1 {[%emt 0:00:05]} g3 {[%emt 0:05:57]} 46. fxg3 {[%emt 0:00:09]} cxb4 {[%emt 0:00:11]} 47. axb4 {[%emt 0:00:17]} a5 {[%emt 0:00:17]} 48. Ra1 {[%emt 0:00:17]} Rc8 {[%emt 0:00:29]} 49. Kg2 {[%emt 0:00:13]} Rh6 {[%emt 0:00:20]} 50. c5 {[%emt 0:00:19]} dxc5 {[%emt 0:00:51]} 51. bxa5 {[%emt 0:00:07]} Nxa5 {[%emt 0:03:11]} 52. g4 {[%emt 0:00:07]} Bd6 {[%emt 0:05:37]} 53. Bg1 {[%emt 0:01:36]} Nb3 {[%emt 0:11:38]} 54. Ra7 {[%emt 0:00:40]} Nd4 {[%emt 0:00:07]} 55. g5 {[%emt 0:00:52]} Rxg6 {[%emt 0:05:54]} 56. fxg6 {[%emt 0:00:06]} Nxe6 {[%emt 0:00:13]} 57. dxe6 {[%emt 0:00:06]} Rc7 {[%emt 0:00:08]} 58. Rxc7 {[%emt 0:00:44]} 1-0

[Event "World Senior chT-65 2019"]
[Site "Rhodes"]
[Date "2019.04.20"]
[Round "5.17"]
[White "Knaak, Rainer"]
[Black "Page, Mark E"]
[Result "1/2-1/2"]
[ECO "A45"]
[WhiteElo "2482"]
[BlackElo "2107"]
[Annotator "ChessBase"]
[PlyCount "128"]
[EventDate "2019.04.16"]
[EventType "team-tourn"]
[EventCountry "GRE"]
[SourceTitle "playchess.com"]
[Source "ChessBase"]
[SourceQuality "1"]
[WhiteTeam "Germany"]
[BlackTeam "England"]
[WhiteTeamCountry "GER"]
[BlackTeamCountry "ENG"]
[TimeControl "40/5400+30:1800+30"]

1. d4 {[%emt 0:00:00]} Nf6 {[%emt 0:00:00]} 2. Bf4 {[%emt 0:00:00]} g6 {[%emt 0:00:00]} 3. Nc3 {[%emt 0:00:04]} d5 {[%emt 0:02:06]} 4. e3 {[%emt 0:00:08]} Bg7 {[%emt 0:01:26]} 5. h4 {[%emt 0:00:20]} a6 {[%emt 0:05:35]} 6. Be2 {[%emt 0:00:43]} h5 {[%emt 0:05:28]} 7. Nf3 {[%emt 0:00:12]} Bg4 {[%emt 0:04:14]} 8. Ne5 {[%emt 0:02:58]} Bxe2 {[%emt 0:03:28]} 9. Qxe2 {[%emt 0:00:30]} Nbd7 {[%emt 0:01:07]} 10. O-O-O {[%emt 0:06:09]} e6 {[%emt 0:07:34]} 11. f3 {[%emt 0:23:10]} Qe7 {[%emt 0:13:43]} 12. e4 {[%emt 0:06:29]} dxe4 {[%emt 0:14:07]} 13. Nxe4 {[%emt 0:04:05]} Nxe4 {[%emt 0:05:34]} 14. Qxe4 {[%emt 0:00:22]} O-O-O {[%emt 0:05:36]} 15. Bg5 {[%emt 0:05:45]} Bh6 {[%emt 0:01:17]} 16. f4 {[%emt 0:00:58]} Bxg5 {[%emt 0:02:10]} 17. fxg5 {[%emt 0:00:07]} Nxe5 {[%emt 0:04:50]} 18. Qxe5 {[%emt 0:00:05]} Rhe8 {[%emt 0:00:08]} 19. c4 {[%emt 0:18:15]} Qd6 {[%emt 0:07:10]} 20. Qe4 {[%emt 0:00:10]} Qb4 {[%emt 0:00:17]} 21. Qc2 {[%emt 0:02:17]} Re7 {[%emt 0:04:16]} 22. a3 {[%emt 0:08:03]} Qa5 {[%emt 0:01:24]} 23. Rhf1 {[%emt 0:00:16]} Red7 {[%emt 0:00:26]} 24. Kb1 {[%emt 0:02:35]} Rxd4 {[%emt 0:03:17]} 25. Rxd4 {[%emt 0:00:22]} Rxd4 {[%emt 0:00:04]} 26. Rxf7 {[%emt 0:00:10]} Qe1+ {[%emt 0:00:45]} 27. Ka2 {[%emt 0:00:05]} Kb8 {[%emt 0:02:14]} 28. c5 {[%emt 0:07:09]} Qe5 {[%emt 0:00:42]} 29. Rf6 {[%emt 0:04:19]} Rxh4 {[%emt 0:01:37]} 30. Rxg6 {[%emt 0:00:46]} Rg4 {[%emt 0:00:31]} 31. c6 {[%emt 0:02:49]} Qd5+ {[%emt 0:00:52]} 32. Qb3 {[%emt 0:00:05]} Qxb3+ {[%emt 0:00:56]} 33. Kxb3 {[%emt 0:00:05]} Rxg2 {[%emt 0:00:19]} 34. cxb7 {[%emt 0:02:18]} Kxb7 {[%emt 0:00:06]} 35. Rxe6 {[%emt 0:00:49]} Rxg5 {[%emt 0:00:12]} 36. Rh6 {[%emt 0:00:07]} c6 {[%emt 0:00:36]} 37. Rh8 {[%emt 0:02:56]} Kb6 {[%emt 0:02:04]} 38. Rb8+ {[%emt 0:00:03]} Kc7 {[%emt 0:00:22]} 39. Ra8 {[%emt 0:00:33]} Kb7 {[%emt 0:00:42]} 40. Rh8 {[%emt 0:00:00]} Kb6 {[%emt 0:00:00]} 41. Rb8+ {[%emt 0:00:25]} Kc7 {[%emt 0:05:13]} 42. Ra8 {[%emt 0:01:02]} h4 {[%emt 0:07:29]} 43. Rh8 {[%emt 0:00:27]} Rg4 {[%emt 0:00:09]} 44. Kc3 {[%emt 0:01:29]} a5 {[%emt 0:03:25]} 45. b4 {[%emt 0:21:11]} a4 {[%emt 0:02:50]} 46. Rh7+ {[%emt 0:00:10]} Kb6 {[%emt 0:05:25]} 47. Rh6 {[%emt 0:00:18]} Rf4 {[%emt 0:00:17]} 48. Kd3 {[%emt 0:00:09]} Rg4 {[%emt 0:05:24]} 49. Kc3 {[%emt 0:00:05]} Rg3+ {[%emt 0:02:08]} 50. Kc4 {[%emt 0:01:59]} h3 {[%emt 0:03:13]} 51. b5 {[%emt 0:00:16]} Rg4+ {[%emt 0:00:28]} 52. Kc3 {[%emt 0:00:23]} Kxb5 {[%emt 0:00:10]} 53. Rxh3 {[%emt 0:00:21]} Rg1 {[%emt 0:00:12]} 54. Rh8 {[%emt 0:02:03]} Rg3+ {[%emt 0:01:42]} 55. Kb2 {[%emt 0:00:05]} c5 {[%emt 0:00:44]} 56. Ra8 {[%emt 0:01:16]} Rh3 {[%emt 0:00:51]} 57. Ra7 {[%emt 0:00:12]} Rh2+ {[%emt 0:00:16]} 58. Kc3 {[%emt 0:04:34]} Ra2 {[%emt 0:01:03]} 59. Rb7+ {[%emt 0:00:05]} Kc6 {[%emt 0:00:03]} 60. Rh7 {[%emt 0:00:11]} Rxa3+ {[%emt 0:00:13]} 61. Kc4 {[%emt 0:00:08]} Rg3 {[%emt 0:00:20]} 62. Rh6+ {[%emt 0:00:14]} Kb7 {[%emt 0:01:33]} 63. Kxc5 {[%emt 0:00:06]} a3 {[%emt 0:00:14]} 64. Rh2 {[%emt 0:00:43]} Rc3+ {[%emt 0:01:03]} 1/2-1/2

[Event "World Senior chT-65 2019"]
[Site "Rhodes"]
[Date "2019.04.20"]
[Round "5.18"]
[White "James, Geoffrey H"]
[Black "Vogt, Lothar"]
[Result "1/2-1/2"]
[ECO "A36"]
[WhiteElo "2144"]
[BlackElo "2362"]
[Annotator "NA"]
[PlyCount "67"]
[EventDate "2019.04.16"]
[EventType "team-tourn"]
[EventCountry "GRE"]
[SourceTitle "playchess.com"]
[Source "ChessBase"]
[SourceQuality "1"]
[WhiteTeam "England"]
[BlackTeam "Germany"]
[WhiteTeamCountry "ENG"]
[BlackTeamCountry "GER"]
[TimeControl "40/5400+30:1800+30"]

1. c4 {[%emt 0:00:00]} c5 {[%emt 0:00:00]} 2. Nc3 {[%emt 0:00:00]} g6 {[%emt 0:00:40]} 3. g3 {[%emt 0:00:00]} Bg7 {[%emt 0:00:22]} 4. Bg2 {[%emt 0:00:04]} Nf6 {[%emt 0:03:54]} 5. d3 {[%emt 0:00:46]} Nc6 {[%emt 0:01:22]} 6. e3 {[%emt 0:01:19]} O-O {[%emt 0:02:30]} 7. Nge2 {[%emt 0:00:16]} e6 {[%emt 0:04:36]} 8. O-O {[%emt 0:09:24]} b6 {[%emt 0:08:56]} 9. a3 {[%emt 0:01:51]} Bb7 {[%emt 0:04:43]} 10. b4 {[%emt 0:03:25]} Rb8 {[%emt 0:02:34]} 11. Rb1 {[%emt 0:02:51]} d6 {[%emt 0:03:13]} 12. b5 {[%emt 0:03:36]} Ne7 {[%emt 0:01:07]} 13. Bxb7 {[%emt 0:00:54]} Rxb7 {[%emt 0:00:03]} 14. Bb2 {[%emt 0:06:20]} Rd7 {[%emt 0:06:08]} 15. Qc2 {[%emt 0:05:02]} Qa8 {[%emt 0:02:09]} 16. e4 {[%emt 0:00:46]} d5 {[%emt 0:02:50]} 17. f3 {[%emt 0:00:14]} Rfd8 {[%emt 0:02:07]} 18. Rbd1 {[%emt 0:00:21]} Ne8 {[%emt 0:03:20]} 19. Nf4 {[%emt 0:03:33]} dxc4 {[%emt 0:04:06]} 20. dxc4 {[%emt 0:00:18]} Rd4 {[%emt 0:01:23]} 21. Na4 {[%emt 0:00:46]} R4d6 {[%emt 0:01:25]} 22. Bxg7 {[%emt 0:03:41]} Nxg7 {[%emt 0:00:32]} 23. Kg2 {[%emt 0:02:31]} f5 {[%emt 0:01:38]} 24. e5 {[%emt 0:00:29]} R6d7 {[%emt 0:01:39]} 25. h4 {[%emt 0:02:38]} h6 {[%emt 0:00:39]} 26. Rxd7 {[%emt 0:07:33]} Rxd7 {[%emt 0:00:03]} 27. Rd1 {[%emt 0:00:18]} Rxd1 {[%emt 0:08:02]} 28. Qxd1 {[%emt 0:00:08]} g5 {[%emt 0:00:29]} 29. hxg5 {[%emt 0:00:33]} hxg5 {[%emt 0:00:02]} 30. Qd7 {[%emt 0:06:15]} gxf4 {[%emt 0:05:13]} 31. Qxe7 {[%emt 0:00:10]} fxg3 {[%emt 0:00:14]} 32. Kxg3 {[%emt 0:00:30]} Kh7 {[%emt 0:10:09]} 33. Nc3 {[%emt 0:05:29]} a6 {[%emt 0:00:50]} 34. a4 {[%emt 0:13:17]} 1/2-1/2

[Event "World Senior chT-65 2019"]
[Site "Rhodes"]
[Date "2019.04.20"]
[Round "5.19"]
[White "Kiefer, Gerhard"]
[Black "Bray, David"]
[Result "1-0"]
[ECO "B48"]
[WhiteElo "2279"]
[BlackElo "2121"]
[Annotator "NA"]
[PlyCount "59"]
[EventDate "2019.04.16"]
[EventType "team-tourn"]
[EventCountry "GRE"]
[SourceTitle "playchess.com"]
[Source "ChessBase"]
[SourceQuality "1"]
[WhiteTeam "Germany"]
[BlackTeam "England"]
[WhiteTeamCountry "GER"]
[BlackTeamCountry "ENG"]
[TimeControl "40/5400+30:1800+30"]

1. e4 {[%emt 0:00:00]} c5 {[%emt 0:00:00]} 2. Nf3 {[%emt 0:00:00]} e6 {[%emt 0:00:00]} 3. d4 {[%emt 0:00:00]} cxd4 {[%emt 0:00:00]} 4. Nxd4 {[%emt 0:00:00]} Nc6 {[%emt 0:00:00]} 5. Nc3 {[%emt 0:00:00]} Qc7 {[%emt 0:00:00]} 6. Be3 {[%emt 0:00:54]} a6 {[%emt 0:00:10]} 7. Bd3 {[%emt 0:03:16]} Nf6 {[%emt 0:00:42]} 8. O-O {[%emt 0:00:11]} Ne5 {[%emt 0:01:18]} 9. h3 {[%emt 0:14:03]} Bc5 {[%emt 0:00:25]} 10. f4 {[%emt 0:03:54]} Ng6 {[%emt 0:06:26]} 11. e5 {[%emt 0:02:48]} Nd5 {[%emt 0:10:41]} 12. Nxd5 {[%emt 0:02:27]} exd5 {[%emt 0:00:01]} 13. Qf3 {[%emt 0:03:07]} d6 {[%emt 0:00:39]} 14. exd6 {[%emt 0:09:55]} Qxd6 {[%emt 0:02:10]} 15. Nb3 {[%emt 0:00:54]} Bxe3+ {[%emt 0:26:11]} 16. Qxe3+ {[%emt 0:00:17]} Ne7 {[%emt 0:03:33]} 17. Rae1 {[%emt 0:01:05]} Kf8 {[%emt 0:01:22]} 18. f5 {[%emt 0:10:27]} f6 {[%emt 0:08:08]} 19. Nd4 {[%emt 0:00:28]} Bd7 {[%emt 0:06:47]} 20. Ne6+ {[%emt 0:02:45]} Bxe6 {[%emt 0:02:36]} 21. fxe6 {[%emt 0:00:06]} Rc8 {[%emt 0:05:06]} 22. Qg5 {[%emt 0:09:36]} Ng8 {[%emt 0:11:37]} 23. Bxh7 {[%emt 0:01:06]} Qe7 {[%emt 0:03:49]} 24. Bxg8 {[%emt 0:11:16]} Kxg8 {[%emt 0:03:37]} 25. Qxd5 {[%emt 0:00:11]} Rxc2 {[%emt 0:00:19]} 26. Rc1 {[%emt 0:00:11]} Rxc1 {[%emt 0:03:44]} 27. Rxc1 {[%emt 0:00:07]} g5 {[%emt 0:00:59]} 28. Qd7 {[%emt 0:01:35]} Qxd7 {[%emt 0:01:20]} 29. exd7 {[%emt 0:00:07]} Kf7 {[%emt 0:00:15]} 30. Rc8 {[%emt 0:00:06]} 1-0